bitfinex/quotes_ETHUSD_20260203
["timestamp","ask_amount","ask_price","bid_price","bid_amount"]
[1770141884473,0.00685933,2186.4,2184.9,9.85483031]
[1770141884795,0.00685933,2186.5,2185.1,1.14411239]
[1770141884997,0.00685933,2186.7,2185.1,1.14411239]
[1770141885294,1.89096961,2186.6,2185.5,0.00686247]
[1770141885493,0.958,2186.8,2185.7,0.00686247]
[1770141885707,0.958,2186.8,2185.8,0.00686247]
[1770141885880,0.958,2186.8,2185.7,0.00686247]
[1770141886274,0.958,2187.0,2185.9,0.00686247]
[1770141886474,0.958,2187.0,2185.1,1.14411239]
[1770141886677,0.1024,2187.5,2186.3,0.00686247]
[1770141887008,0.958,2187.5,2186.4,0.00686247]
[1770141887306,0.0011,2187.6,2186.5,0.00686247]
[1770141887601,0.71729398,2187.6,2186.4,0.00686247]
[1770141887809,0.71729398,2187.6,2186.5,0.00686247]
[1770141887978,0.0011,2187.8,2187.3,0.00686247]
[1770141888305,2.69719835,2189.2,2187.7,0.00686247]
[1770141888476,0.95980192,2189.2,2188.1,0.00686247]
[1770141888670,2.10178026,2189.2,2188.2,0.00686247]
[1770141888866,2.10178026,2189.2,2187.4,4.57848245]
[1770141888867,0.93111041,2189.1,2187.4,4.57848245]
[1770141889069,0.93111041,2189.0,2188.0,0.00686247]
[1770141889328,0.93112278,2188.9,2187.7,1.14961285]
[1770141889469,0.93112278,2188.9,2185.8,0.00686247]
[1770141889470,0.03431235,2187.6,2185.8,0.00686247]
[1770141889671,1.55261158,2187.3,2185.6,4.57538913]
[1770141889895,0.93112278,2187.2,2185.8,1.14373745]
[1770141890100,0.93112278,2187.1,2186.0,0.00686247]
[1770141890395,2.51061158,2187.5,2186.1,0.00686247]
[1770141890601,2.51061158,2187.5,2185.9,0.00686247]
[1770141890602,1.14296164,2187.3,2185.9,0.00686247]
[1770141890794,0.93261311,2187.2,2185.9,1.15055468]
[1770141890996,0.93261311,2187.1,2185.9,0.00686247]
[1770141891186,0.93261311,2187.0,2186.0,0.00686247]
[1770141891386,0.93261311,2186.9,2186.0,0.00686247]
[1770141891698,0.958,2187.3,2186.5,0.00686247]
[1770141891901,0.93412412,2187.2,2185.9,1.14369291]
[1770141892081,0.958,2187.3,2185.9,1.14369291]
[1770141892082,0.93412412,2187.1,2186.1,0.00686247]
[1770141892282,0.958,2187.3,2186.0,0.00686247]
[1770141892477,0.9341033,2187.2,2186.2,0.00686247]
[1770141892689,1.14304243,2187.2,2186.5,0.00686247]
[1770141892894,2.10099537,2187.3,2186.3,0.00686247]
[1770141893198,0.93442272,2187.2,2186.4,0.00686247]
[1770141893400,2.10099537,2187.3,2186.5,0.00686247]
[1770141893606,0.93388199,2187.2,2186.4,0.00686247]
[1770141893838,0.93388199,2187.2,2186.0,4.58141204]
[1770141893839,7.95104776,2186.5,2183.8,0.00686247]
[1770141894108,7.95104776,2186.5,2183.1,4.0]
[1770141894109,0.88664977,2185.5,2183.9,0.00686498]
[1770141894317,0.958,2186.0,2184.6,0.00686498]
[1770141894476,15.94507682,2186.6,2184.0,0.00686498]
[1770141894477,1.55543624,2186.7,2185.3,0.00686498]
[1770141894676,1.55543624,2186.7,2185.1,0.00686498]
[1770141894677,2.07535505,2186.6,2185.1,0.00686498]
[1770141894878,0.9320113,2186.5,2185.2,0.00686498]
[1770141895090,1.29509043,2186.4,2185.1,0.00686498]
[1770141895321,0.36307913,2186.4,2185.5,0.00686498]
[1770141895478,0.36307913,2186.4,2185.2,0.00686498]
[1770141895678,0.93137717,2186.3,2185.1,0.00686498]
[1770141895908,0.36307913,2186.4,2185.6,4.6]
[1770141896331,0.958,2186.5,2185.6,4.6]
[1770141896626,0.958,2186.5,2185.6,0.00686498]
[1770141896809,3.03275553,2186.4,2184.8,0.00686498]
[1770141897133,0.1024,2186.2,2184.6,0.00686498]
[1770141897425,1.88932341,2186.1,2184.8,0.00686498]
[1770141897627,0.93132341,2186.0,2184.9,4.6]
[1770141898194,0.93132341,2186.0,2184.1,0.00686498]
[1770141898195,0.1024,2185.9,2183.2,4.58039487]
[1770141898531,0.1024,2185.9,2182.6,0.00686498]
[1770141898532,1.55543624,2183.9,2182.6,0.00686498]
[1770141898826,2.32599017,2184.3,2182.7,10.3453522]
[1770141898827,2.10353142,2184.3,2182.7,10.3453522]
[1770141899027,0.23259902,2184.2,2183.0,0.00686498]
[1770141899228,1.6532006,2184.8,2183.0,0.00686498]
[1770141899229,1.14440726,2184.6,2183.2,0.0068697]
[1770141899444,0.1024,2184.8,2183.1,4.0]
[1770141899623,1.14418486,2185.0,2183.8,0.0068697]
[1770141899802,0.959,2184.8,2183.9,5.2]
[1770141900192,0.959,2184.8,2182.3,16.62266375]
[1770141900193,0.959,2184.8,2182.7,1.14535332]
[1770141900397,0.959,2184.8,2183.8,0.0068697]
[1770141900715,0.959,2184.8,2183.9,0.0068697]
[1770141900915,0.959,2184.8,2184.0,0.0068697]
[1770141901233,0.959,2184.8,2184.2,0.001]
[1770141901234,2.10328744,2184.8,2184.2,0.001]
[1770141901442,6.12621499,2185.6,2184.5,0.0068697]
[1770141901443,1.14390299,2185.6,2184.5,0.0068697]
[1770141901669,0.959,2186.0,2184.9,0.0068697]
[1770141901871,2.10266192,2186.0,2184.7,0.0068697]
[1770141902008,2.10266192,2186.0,2183.9,0.0068697]
[1770141902209,2.10266192,2186.0,2184.7,0.0068697]
[1770141902440,0.66771713,2185.9,2184.6,0.0068697]
[1770141902643,1.14353673,2186.2,2185.1,0.0068697]
[1770141902942,0.7606484,2186.3,2185.1,0.0068697]
[1770141902943,1.14351888,2186.3,2185.1,0.0068697]
[1770141903142,1.14351888,2186.3,2185.2,4.0]
[1770141903347,1.14317069,2186.9,2185.5,0.0068697]
[1770141903562,0.0011,2187.0,2186.0,0.0068697]
[1770141903774,1.14423668,2187.0,2186.0,0.0068697]
[1770141904051,1.14423668,2187.0,2185.9,0.0068697]
[1770141904346,1.14423286,2187.0,2185.9,0.0068697]
[1770141904545,1.71600871,2187.0,2185.8,0.0068697]
[1770141904751,1.71600871,2187.0,2185.7,1.1506668]
[1770141904953,1.14423286,2187.0,2185.7,0.0068697]
[1770141905123,0.0011,2187.0,2186.2,0.0068697]
[1770141905320,0.0011,2187.0,2186.3,0.0068697]
[1770141905519,0.0011,2187.0,2186.2,0.0068697]
[1770141905724,0.0011,2187.0,2186.1,0.0068697]
[1770141905931,0.0011,2187.0,2186.3,0.0068697]
[1770141906221,0.0011,2187.0,2186.4,0.0068697]
[1770141906428,12.83420434,2186.8,2181.8,5.63271054]
[1770141906748,1.16395139,2185.5,2184.0,1.14467129]
[1770141909561,1.14395533,2185.4,2184.1,0.0137394]
[1770141909763,1.69761263,2185.3,2184.1,0.0137394]
[1770141910054,0.93371884,2185.2,2184.1,0.0137394]
[1770141910230,0.76389379,2185.3,2184.1,0.0137394]
[1770141910425,0.76389379,2185.3,2184.2,0.0068697]
[1770141910661,2.30788399,2185.5,2184.3,0.0068697]
[1770141910847,2.09848708,2185.4,2184.3,0.0137394]
[1770141911029,1.1439326,2185.5,2184.3,0.0137394]
[1770141911234,4.57561198,2185.7,2184.6,0.0068697]
[1770141911235,0.93495418,2185.4,2184.6,0.0068697]
[1770141911437,1.9181758,2185.8,2184.7,0.0206091]
[1770141911438,2.67511682,2185.8,2184.7,0.0206091]
[1770141911639,0.3673752,2185.8,2185.1,0.0068697]
[1770141911968,1.14332943,2186.6,2185.6,0.0068697]
[1770141912141,3.24338361,2186.6,2185.2,0.0137394]
[1770141912487,0.93610279,2186.5,2185.6,0.0068697]
[1770141912663,0.93610279,2186.5,2185.7,0.0068697]
[1770141912869,1.16395139,2186.7,2185.8,0.0068697]
[1770141913066,1.14317366,2186.9,2186.0,0.0068697]
[1770141913269,1.14317366,2186.9,2186.1,0.0068697]
[1770141913270,4.30180632,2186.9,2186.1,0.0068697]
[1770141913468,0.9385461,2186.8,2186.1,0.0137394]
[1770141913968,0.0011,2187.2,2186.7,0.0068697]
[1770141914145,1.16395139,2187.8,2186.9,0.0068697]
[1770141914467,1.16395139,2187.7,2187.1,0.0068697]
[1770141914672,1.16395139,2187.9,2187.4,0.0068697]
[1770141914870,1.16505139,2188.1,2187.2,0.0206091]
[1770141915068,1.16395139,2187.9,2186.5,1.15023688]
[1770141915366,1.16395139,2187.8,2187.0,1.14308986]
[1770141915669,1.16395139,2187.9,2186.8,0.0137394]
[1770141915867,1.16395139,2187.8,2187.1,1.14992388]
[1770141916069,0.0011,2188.1,2187.3,0.0068697]
[1770141916279,1.16395139,2188.5,2187.7,0.0068697]
[1770141916469,3.11087248,2189.1,2188.4,0.0068697]
[1770141916470,1.15021199,2189.0,2188.4,0.0068697]
[1770141916674,1.14174571,2189.7,2188.7,0.0068697]
[1770141917168,1.5508006,2189.3,2187.9,0.0068697]
[1770141917370,2.15275514,2189.6,2188.3,0.0068697]
[1770141917576,1.5508006,2189.5,2188.3,0.0068697]
[1770141917745,1.5508006,2189.5,2188.2,0.0068697]
[1770141918079,1.5508006,2189.5,2188.3,0.0068697]
[1770141918445,2.15275514,2189.6,2188.4,0.0068697]
[1770141918647,0.32945009,2189.5,2188.4,0.0068697]
[1770141918865,1.14186535,2189.4,2188.3,0.0068697]
[1770141919076,0.32945009,2189.5,2188.5,0.0068697]
[1770141919397,0.32945009,2189.5,2188.7,0.0068697]
[1770141919613,1.1417089,2189.7,2188.8,0.0068697]
[1770141919815,1.1417089,2189.7,2188.7,0.0068697]
[1770141920088,0.31096408,2189.8,2189.0,0.0068697]
[1770141920292,2.69228284,2190.2,2189.1,0.0068697]
[1770141920490,0.26922828,2190.1,2189.3,0.0068697]
[1770141920673,1.14144395,2190.3,2189.3,0.0068697]
[1770141920865,4.56544691,2190.4,2189.3,0.0068697]
[1770141921187,4.56544691,2190.4,2189.2,0.0068697]
[1770141921413,0.1035,2190.6,2189.4,0.0068697]
[1770141921566,0.0011,2190.6,2189.7,0.0068697]
[1770141921767,0.0068697,2190.5,2189.2,1.14194451]
[1770141921977,0.5796612,2190.5,2189.0,1.14204497]
[1770141922176,0.5796612,2190.5,2188.6,0.0068697]
[1770141922380,0.5796612,2190.5,2189.2,1.14194572]
[1770141922597,0.5796612,2190.5,2188.6,0.0068697]
[1770141922598,0.5727915,2190.5,2189.3,1.14191119]
[1770141922894,0.0011,2190.6,2189.6,0.0068697]
[1770141923387,0.0011,2190.6,2189.5,0.0068697]
[1770141923780,0.0011,2190.6,2189.6,0.0068697]
[1770141923960,0.0011,2190.6,2188.5,17.43204185]
[1770141924158,0.0011,2190.6,2189.2,0.0068697]
[1770141924364,0.0011,2190.6,2188.5,17.43204185]
[1770141924690,0.1035,2190.6,2188.9,0.0068697]
[1770141924874,4.66866776,2190.6,2189.0,1.142074]
[1770141925064,1.14129194,2190.5,2189.3,0.0068697]
[1770141925301,4.66866776,2190.6,2189.1,0.0068697]
[1770141925302,1.14234205,2190.6,2189.1,0.0068697]
[1770141925489,0.57073014,2190.5,2189.2,0.0068697]
[1770141925798,0.1024,2190.4,2188.9,1.14212378]
[1770141926094,0.57073014,2190.5,2189.1,0.0068697]
[1770141926298,0.57073014,2190.5,2189.4,0.0078697]
[1770141926499,0.57073014,2190.5,2189.4,0.001]
[1770141926699,0.0011,2190.3,2189.4,0.001]
[1770141926902,0.0011,2190.3,2189.6,1.14176105]
[1770141927116,0.0011,2190.6,2189.7,0.0068697]
[1770141927294,0.0011,2190.6,2189.5,1.1486555]
[1770141927602,0.0011,2190.8,2190.2,0.0068697]
[1770141928003,0.0011,2190.8,2190.1,0.0068697]
[1770141928211,0.0011,2190.8,2189.2,0.0068697]
[1770141928498,0.0011,2190.8,2189.8,0.0068697]
[1770141929084,0.0011,2190.8,2189.7,1.14854202]
[1770141929298,0.0011,2190.8,2189.7,0.0068697]
[1770141929502,0.0011,2190.8,2189.8,1.14852199]
[1770141929901,0.0011,2190.8,2189.9,0.0068697]
[1770141930207,0.0011,2190.8,2189.6,1.14173944]
[1770141930380,0.0011,2190.8,2189.9,0.0068697]
[1770141930700,0.0011,2190.8,2189.4,1.14283469]
[1770141930901,0.0011,2190.8,2189.4,0.001]
[1770141931305,4.56412596,2191.2,2189.4,0.001]
[1770141931306,4.56361022,2191.3,2189.7,0.0068697]
[1770141931485,1.14196143,2191.4,2190.6,0.0068697]
[1770141931686,1.14196143,2191.4,2190.4,0.0068697]
[1770141931886,0.0011,2191.4,2190.6,0.0068697]
[1770141932116,0.0011,2191.4,2191.2,0.0068697]
[1770141932415,0.1024,2192.5,2191.3,0.0068697]
[1770141932630,0.1024,2192.5,2191.0,0.0068697]
[1770141932631,4.831,2192.4,2191.0,0.0068697]
[1770141932787,25.11745034,2192.4,2189.9,12.8629109]
[1770141933109,4.831,2191.9,2190.3,1.14137353]
[1770141933277,4.831,2191.7,2190.4,1.14821041]
[1770141933476,4.831,2191.7,2190.4,0.0068697]
[1770141934023,4.831,2191.7,2190.7,0.0068697]
[1770141934184,4.831,2191.7,2190.9,0.0068697]
[1770141934511,4.831,2191.7,2190.8,0.0068697]
[1770141934713,0.54281511,2191.6,2190.8,0.0068697]
[1770141934914,1.14051094,2192.0,2191.0,0.0068697]
[1770141935120,1.14051094,2192.0,2191.2,0.0068697]
[1770141935429,2.09840689,2192.3,2191.3,0.0068697]
[1770141935583,1.14040689,2192.3,2191.4,0.0068697]
[1770141935786,1.14034364,2192.4,2191.3,0.0068697]
[1770141936085,0.64045637,2192.3,2191.3,0.0068697]
[1770141936279,0.64045637,2192.3,2191.4,0.0068697]
[1770141936484,0.64045637,2192.3,2191.5,0.0068697]
[1770141936694,0.64045637,2192.3,2191.6,0.0068697]
[1770141936922,4.66277942,2192.9,2191.8,0.0068697]
[1770141937080,4.56037942,2192.9,2191.6,0.0068697]
[1770141937281,4.56037942,2192.9,2191.7,0.0068697]
[1770141937542,0.66574223,2192.8,2191.7,0.0068697]
[1770141937705,0.66574223,2192.8,2191.2,1.14775984]
[1770141937911,0.66574223,2192.8,2191.4,1.14767978]
[1770141938084,0.66574223,2192.8,2191.6,0.0068697]
[1770141938531,0.1024,2192.7,2191.0,0.0068697]
[1770141938702,0.62501217,2192.7,2191.4,0.0068697]
[1770141939216,1.14019885,2192.6,2191.5,0.0068697]
[1770141940002,0.01280274,2192.5,2191.5,0.0068697]
[1770141940207,0.63644366,2192.5,2191.6,0.001]
[1770141940404,0.63644366,2192.5,2191.6,0.0078697]
[1770141940780,0.63644366,2192.5,2191.6,0.001]
[1770141940982,0.63644366,2192.5,2191.6,0.0078697]
[1770141941211,0.63644366,2192.5,2191.6,1.14858234]
[1770141941415,0.63644366,2192.5,2191.8,0.0068697]
[1770141941615,0.63644366,2192.5,2191.9,0.0068697]
[1770141941818,0.01280274,2192.5,2191.9,0.0068697]
[1770141942014,0.01280274,2192.5,2191.8,0.0068697]
[1770141942224,0.01280274,2192.5,2192.0,0.0068697]
[1770141942520,0.0011,2192.6,2191.7,0.0068697]
[1770141942702,0.0011,2192.6,2191.8,0.0068697]
[1770141942897,0.0011,2192.6,2191.9,0.0068697]
[1770141943425,0.0011,2192.6,2191.6,1.14857942]
[1770141943426,0.93733068,2192.5,2191.6,0.001]
[1770141943624,0.9581,2192.6,2191.6,0.001]
[1770141943789,0.937187,2192.5,2191.6,0.001]
[1770141943989,0.9581,2192.6,2191.6,0.001]
[1770141944329,2.5089006,2192.6,2191.6,0.001]
[1770141944510,1.22173108,2192.5,2191.6,0.001]
[1770141944706,0.93724399,2192.4,2191.6,0.001]
[1770141944908,0.1024,2192.3,2191.4,0.001]
[1770141945222,0.1024,2192.3,2190.4,1.14133411]
[1770141945223,0.2335703,2192.1,2190.4,1.14133411]
[1770141945426,0.1024,2191.8,2190.2,0.0068697]
[1770141945627,0.1024,2191.8,2190.3,0.0068697]
[1770141945628,2.5078006,2191.7,2190.3,0.0068697]
[1770141945931,1.5508006,2191.4,2190.0,0.0068697]
[1770141946127,0.93724399,2191.3,2190.3,0.0068697]
[1770141946292,0.93724399,2191.2,2190.3,0.0068697]
[1770141946503,0.93724399,2191.1,2190.3,0.0068697]
[1770141946712,0.957,2191.3,2190.3,0.0068697]
[1770141946907,0.94093721,2191.2,2190.4,0.0068697]
[1770141947113,1.5508006,2191.6,2190.6,0.0068697]
[1770141947313,0.38856401,2191.5,2190.5,0.0068697]
[1770141947513,0.94203837,2191.4,2190.8,0.0068697]
[1770141947845,0.94158946,2191.3,2189.1,0.001]
[1770141948042,3.1371194,2191.1,2189.8,0.0068697]
[1770141948334,3.1371194,2191.1,2189.5,0.0068697]
[1770141948335,1.88245179,2191.0,2189.5,0.0068697]
[1770141948552,1.56873985,2191.3,2190.8,0.0068697]
[1770141948831,0.94114524,2191.6,2190.5,0.0068697]
[1770141948832,0.94253174,2191.2,2190.7,0.0068697]
[1770141949032,1.56873985,2191.7,2190.8,0.0068697]
[1770141949201,3.49385505,2191.9,2190.7,0.0068697]
[1770141949202,1.14077116,2191.5,2190.7,0.0068697]
[1770141949403,1.60718209,2191.4,2190.4,0.0068697]
[1770141949599,0.94314726,2191.3,2190.1,0.0068697]
[1770141949801,0.66462754,2191.4,2190.9,0.0068697]
[1770141950003,1.14075771,2191.6,2190.8,0.0068697]
[1770141950217,1.1406962,2191.7,2191.1,0.0068697]
[1770141950443,0.94335879,2191.6,2190.8,0.0068697]
[1770141950745,1.14069469,2191.7,2190.9,0.0068697]
[1770141950908,0.94455295,2191.6,2190.9,0.0068697]
[1770141951330,1.14077116,2191.5,2190.5,0.0068697]
[1770141951543,1.60939383,2191.4,2190.5,0.0068697]
[1770141951855,0.94455295,2191.3,2190.4,0.0068697]
[1770141952055,0.66484088,2191.4,2190.8,0.0068697]
[1770141952342,0.94579442,2191.3,2190.7,0.0068697]
[1770141952539,1.1406968,2191.7,2190.8,0.0068697]
[1770141952703,0.94589533,2191.6,2190.9,0.0068697]
[1770141952903,1.56873985,2192.3,2191.2,0.0068697]
[1770141953200,1.56873985,2192.3,2191.5,0.0068697]
[1770141953405,2.70906812,2192.4,2191.4,0.0068697]
[1770141953941,2.99352327,2192.5,2191.4,0.0068697]
[1770141954100,2.99352327,2192.5,2191.5,0.0068697]
[1770141954305,2.99350785,2192.5,2191.5,0.0068697]
[1770141954507,0.53478653,2192.4,2191.0,0.001]
[1770141954724,2.10352638,2192.4,2191.3,0.0068697]
[1770141955123,2.10352638,2192.4,2191.6,0.0068697]
[1770141955330,1.67508939,2192.4,2191.6,0.0068697]
[1770141955520,2.10352638,2192.4,2191.6,0.0068697]
[1770141955728,0.23880135,2192.3,2191.6,0.0068697]
[1770141955931,0.53478653,2192.4,2191.7,0.0068697]
[1770141956124,1.14132026,2192.6,2191.6,0.0068697]
[1770141956643,1.14132026,2192.6,2191.7,0.0068697]
[1770141956825,1.14132026,2192.6,2191.6,0.0068697]
[1770141957226,1.56873985,2192.5,2191.6,0.0068697]
[1770141957425,1.56873985,2192.5,2191.9,0.0068697]
[1770141957724,0.27100661,2192.4,2191.9,0.0068697]
[1770141957920,0.27100661,2192.4,2191.8,0.0068697]
[1770141958134,0.27100661,2192.4,2191.9,0.0068697]
[1770141958339,1.56983985,2192.6,2191.9,0.0068697]
[1770141958340,1.56983985,2192.6,2192.1,0.0068697]
[1770141958735,2.35435748,2192.8,2192.3,0.0068697]
[1770141958736,1.57783511,2192.8,2192.3,0.0068697]
[1770141959147,0.0011,2192.8,2192.3,0.0068697]
[1770141959353,2.35325748,2193.4,2192.7,0.0068697]
[1770141959524,0.23532575,2193.3,2192.7,0.0068697]
[1770141959725,0.23532575,2193.3,2192.6,0.0068697]
[1770141959943,0.23532575,2193.3,2192.3,0.0068697]
[1770141960247,0.23532575,2193.3,2191.7,0.0068697]
[1770141960248,2.35325748,2193.1,2191.4,0.0068697]
[1770141960559,2.35325748,2192.8,2191.4,1.1476662]
[1770141960773,0.23532575,2192.7,2191.4,0.0068697]
[1770141960919,2.35325748,2192.5,2191.1,0.0068697]
[1770141961247,2.35325748,2192.5,2191.0,0.001]
[1770141961248,2.35325748,2192.2,2191.0,0.001]
[1770141961447,2.35325748,2192.0,2191.0,0.001]
[1770141961750,0.34937164,2191.9,2191.0,0.0078697]
[1770141961952,2.35325748,2192.0,2191.0,0.001]
[1770141962519,2.35325748,2192.1,2191.1,0.0068697]
[1770141962756,2.35325748,2192.9,2192.4,0.0068697]
[1770141962973,3.22707191,2193.3,2192.7,0.0068697]
[1770141963114,0.23532575,2193.3,2193.0,0.0068697]
[1770141963436,0.0011,2193.6,2193.2,0.0068697]
[1770141963765,0.0011,2193.6,2192.3,1.14717417]
[1770141963920,0.0011,2193.6,2192.5,0.0068697]
[1770141964120,0.57124501,2193.6,2192.8,0.0068697]
[1770141964323,0.57124501,2193.6,2192.7,0.0068697]
[1770141964546,0.57124501,2193.6,2192.8,0.0068697]
[1770141965054,0.57124501,2193.6,2192.6,0.0068697]
[1770141965055,0.94532726,2193.5,2192.6,0.0068697]
[1770141965227,0.57124501,2193.6,2192.6,1.14706567]
[1770141965429,0.57124501,2193.6,2192.4,0.0068697]
[1770141965430,2.084537,2193.5,2192.4,0.0068697]
[1770141965625,2.62227659,2193.4,2192.0,1.14735487]
[1770141965945,0.1024,2193.2,2192.0,0.0068697]
[1770141966153,0.94480598,2193.1,2192.0,0.0068697]
[1770141966320,0.94480598,2193.0,2192.0,0.0068697]
[1770141966515,0.94480598,2192.9,2192.1,0.0068697]
[1770141966714,4.03072809,2193.4,2192.2,0.0068697]
[1770141966945,1.46169863,2193.3,2192.3,0.0068697]
[1770141967148,0.94465272,2193.2,2192.4,0.0068697]
[1770141967322,0.94465272,2193.2,2192.5,0.0068697]
[1770141967522,0.51704591,2193.3,2192.7,0.0068697]
[1770141967725,1.13983538,2193.3,2192.5,0.0068697]
[1770141967919,1.13983538,2193.3,2192.6,0.0068697]
[1770141968315,4.56024204,2193.4,2192.6,0.0068697]
[1770141968316,1.1409194,2193.4,2192.6,0.0068697]
[1770141968519,1.1409194,2193.4,2192.4,0.0068697]
[1770141968718,0.94456982,2193.3,2192.5,0.0068697]
[1770141968940,1.1409194,2193.4,2192.5,0.0068697]
[1770141969139,0.57000513,2193.3,2192.4,0.0068697]
[1770141969435,0.57000513,2193.3,2192.5,0.0068697]
[1770141969436,0.94375382,2193.2,2192.5,0.0068697]
[1770141969634,0.57000513,2193.3,2192.6,0.0068697]
[1770141969874,1.1409194,2193.4,2193.1,0.0068697]
[1770141969875,0.0011,2193.4,2193.1,0.0068697]
[1770141970064,0.0011,2193.6,2193.3,0.0068697]
[1770141970256,0.0011,2193.6,2192.2,0.0068697]
[1770141970568,0.0011,2193.6,2193.1,0.0068697]
[1770141970775,0.0011,2193.6,2193.3,0.0068697]
[1770141970947,0.0011,2193.6,2193.0,0.0068697]
[1770141971141,1.1407895,2193.6,2192.5,0.0068697]
[1770141971339,0.0011,2193.6,2192.5,1.14709677]
[1770141971544,0.0011,2193.6,2192.7,0.0068697]
[1770141971741,0.0011,2193.6,2192.8,0.0068697]
[1770141971945,2.35433998,2194.9,2193.5,0.0068697]
[1770141972163,11.93957498,2195.6,2193.9,0.00085872]
[1770141972360,11.93957498,2195.6,2193.1,0.0068697]
[1770141972361,11.93957498,2195.0,2193.1,0.0068697]
[1770141972553,12.88055999,2194.9,2193.4,0.0068697]
[1770141972760,1.89698501,2194.8,2193.4,0.0068697]
[1770141973071,2.32415693,2194.7,2192.9,0.0068697]
[1770141973275,1.383656,2194.7,2193.3,0.0068697]
[1770141973469,1.13915975,2194.6,2193.4,1.14664762]
[1770141973768,2.52278204,2194.7,2193.6,0.0068697]
[1770141974075,0.80352134,2194.6,2193.2,0.0068697]
[1770141974273,0.80352134,2194.6,2193.2,1.14672815]
[1770141974781,13.11234016,2194.5,2192.9,0.0068697]
[1770141974947,0.956,2194.4,2193.1,0.0068697]
[1770141975145,0.956,2194.3,2193.1,0.0068697]
[1770141975380,1.13936742,2194.2,2193.1,0.0068697]
[1770141975581,1.13936742,2194.2,2192.7,0.0068697]
[1770141975582,5.0645703,2194.0,2192.4,1.82775756]
[1770141975742,12.04197498,2193.5,2191.7,0.0068697]
[1770141975949,11.93957498,2193.5,2191.9,0.0068697]
[1770141976184,0.956,2193.5,2192.4,0.0068697]
[1770141976391,0.956,2193.5,2192.5,0.0068697]
[1770141976693,0.956,2193.6,2192.5,0.0068697]
[1770141976859,0.956,2193.6,2191.9,0.0068697]
[1770141977063,0.956,2193.6,2192.3,0.0068697]
[1770141977379,0.93990584,2193.5,2192.3,0.0068697]
[1770141977584,1.13973102,2193.5,2192.4,0.0068697]
[1770141977893,0.66546551,2193.4,2192.5,0.0068697]
[1770141978088,0.66546551,2193.4,2192.6,0.0068697]
[1770141978283,0.66546551,2193.4,2192.7,0.0068697]
[1770141978874,0.66546551,2193.4,2192.8,0.0068697]
[1770141979474,1.80526019,2193.4,2192.8,0.0078697]
[1770141979678,1.13979468,2193.4,2192.9,0.0068697]
[1770141979995,1.13966478,2193.7,2192.8,0.0078697]
[1770141981198,0.0011,2194.1,2193.5,0.0068697]
[1770141981496,0.0011,2194.1,2193.6,0.0068697]
[1770141981873,14.49922595,2194.6,2193.6,0.0068697]
[1770141981874,1.17403556,2194.6,2193.6,0.0068697]
[1770141982067,1.13911683,2194.7,2194.0,0.00085872]
[1770141982300,1.13911683,2194.7,2193.7,0.0068697]
[1770141982502,4.55593242,2195.0,2194.0,0.0068697]
[1770141982664,0.94547939,2194.9,2194.0,0.00171743]
[1770141982997,1.59123282,2194.8,2193.9,0.00085872]
[1770141983196,0.64574118,2194.8,2194.0,0.00343485]
[1770141983494,1.13910785,2194.7,2193.9,0.0068697]
[1770141983699,1.13910785,2194.7,2193.6,0.0068697]
[1770141983896,1.13910785,2194.7,2193.7,0.0068697]
[1770141984194,0.63412804,2194.6,2193.4,0.0068697]
[1770141984395,0.956,2194.5,2193.5,0.0068697]
[1770141984563,0.956,2194.5,2193.4,0.0068697]
[1770141984770,0.94464598,2194.4,2193.0,0.0068697]
[1770141984968,1.90064598,2194.3,2193.2,0.0068697]
[1770141985208,0.94464598,2194.2,2193.2,0.0068697]
[1770141985366,0.956,2194.2,2193.3,0.0068697]
[1770141985716,0.956,2194.2,2193.2,0.0068697]
[1770141985717,1.13941935,2194.1,2193.2,0.0068697]
[1770141985876,0.66530967,2194.0,2193.0,0.0068697]
[1770141986204,0.66530967,2194.0,2193.1,0.0068697]
[1770141986503,0.63412804,2194.6,2193.8,0.0068697]
[1770141986807,1.13895216,2195.0,2194.1,0.0068697]
[1770141987006,1.13895216,2195.0,2194.0,0.00171743]
[1770141987179,1.13895216,2195.0,2193.3,0.0068697]
[1770141987387,0.5694579,2194.9,2193.7,0.0068697]
[1770141987601,1.13905595,2194.8,2193.8,0.0068697]
[1770141987800,1.13905595,2194.8,2194.0,0.00343485]
[1770141988000,1.13905595,2194.8,2194.0,0.00085872]
[1770141988188,1.13905595,2194.8,2194.1,0.00085872]
[1770141988384,0.62647377,2194.7,2194.0,0.00085872]
[1770141989112,0.62647377,2194.7,2194.2,0.0068697]
[1770141989402,0.62647377,2194.7,2194.2,0.00085872]
[1770141989574,0.5694579,2194.9,2194.2,0.00085872]
[1770141989772,1.13996501,2195.2,2194.6,0.00171743]
[1770141989973,1.13996501,2195.2,2194.6,0.00150275]
[1770141990174,1.13843351,2196.1,2195.1,0.00558163]
[1770141990491,4.55393407,2196.0,2195.0,0.00128807]
[1770141990696,0.56923676,2195.9,2195.0,0.00128807]
[1770141990881,0.56923676,2195.9,2195.1,0.00171743]
[1770141991206,0.56923676,2195.9,2195.2,0.00343485]
[1770141991420,0.56923676,2195.9,2195.2,0.00128807]
[1770141991619,1.70776793,2195.9,2195.2,0.00128807]
[1770141991823,1.70776793,2195.9,2195.3,0.00085872]
[1770141992120,0.62616284,2195.8,2195.1,0.00085872]
[1770141992323,0.62616284,2195.8,2195.2,0.0068697]
[1770141992495,0.62616284,2195.8,2195.2,0.00085872]
[1770141992697,0.62616284,2195.8,2195.2,0.00171743]
[1770141993003,0.62616284,2195.8,2195.1,0.00085872]
[1770141993203,0.0011,2195.9,2195.4,0.00343485]
[1770141993407,1.13958851,2195.9,2195.4,0.00085872]
[1770141993714,0.0011,2195.9,2195.4,0.00085872]
[1770141994114,0.0011,2195.9,2195.4,0.00171743]
[1770141994336,0.0011,2195.9,2195.5,0.00085872]
[1770141994539,1.26233091,2196.4,2195.8,0.00171743]
[1770141994540,0.1240529,2196.4,2195.8,0.00171743]
[1770141994846,1.2622975,2196.4,2195.9,0.00085872]
[1770141994997,0.0011,2197.0,2196.4,0.00343485]
[1770141995201,1.13750113,2197.8,2196.5,0.00150275]
[1770141995423,1.13750113,2197.8,2196.7,0.00171743]
[1770141995424,0.956,2197.7,2196.7,0.00171743]
[1770141995626,0.956,2197.7,2196.7,0.00150275]
[1770141995854,0.956,2197.7,2196.4,0.0068697]
[1770141995855,1.13760465,2197.6,2196.4,0.0068697]
[1770141995999,0.66440233,2197.5,2196.7,0.00085872]
[1770141996195,0.66440233,2197.5,2196.4,0.0068697]
[1770141996426,0.66440233,2197.5,2196.9,0.00515228]
[1770141996632,0.30895385,2198.2,2197.1,0.00343485]
[1770141996800,0.30895385,2198.2,2197.1,0.00171743]
[1770141996801,1.13734588,2198.1,2197.1,0.00171743]
[1770141997124,13.54136017,2198.1,2196.5,0.0068697]
[1770141997337,13.54136017,2198.1,2196.4,0.00085872]